bitfinex-derivatives/quotes_SOLF0:USTF0_20240908
["timestamp","ask_amount","ask_price","bid_price","bid_amount"]
[1725827464402,3.1094,128.65,128.63,12.20259193]
[1725827464596,8.38,128.66,128.6,3.1104]
[1725827464800,8.38,128.66,128.61,8.38]
[1725827465001,3.1097,128.64,128.61,8.38]
[1725827465206,3.1097,128.64,128.61,12.2600342]
[1725827465798,3.1093,128.66,128.63,8.38]
[1725827466006,3.1093,128.66,128.64,8.38]
[1725827475016,25.9764,128.71,128.65,8.38]
[1725827475017,1.3416,128.71,128.65,8.38]
[1725827475313,144.995046,128.72,128.68,8.38]
[1725827475517,144.995046,128.72,128.68,12.33615329]
[1725827475917,144.995046,128.72,128.69,8.38]
[1725827476121,144.995046,128.72,128.69,11.4882]
[1725827476919,144.995046,128.72,128.71,8.38]
[1725827477621,2.6257,128.76,128.71,8.38]
[1725827477812,8.38,128.78,128.72,8.38]
[1725827479412,3.107,128.75,128.72,8.38]
[1725827480113,3.107,128.75,128.71,3.1077]
[1725827480416,3.107,128.75,128.71,11.4877]
[1725827481822,12.20430647,128.76,128.7,3.1079]
[1725827482014,12.20430647,128.76,128.69,12.4372]
[1725827482318,3.1074,128.73,128.69,15.5454]
[1725827482710,3.1074,128.73,128.69,14.2508]
[1725827482913,8.38,128.73,128.67,8.38]
[1725827483120,8.38,128.72,128.66,8.38]
[1725827483421,3.1085,128.69,128.65,8.38]
[1725827483723,8.38,128.7,128.65,8.38]
[1725827485418,8.38,128.71,128.65,8.38]
[1725827485827,3.1085,128.69,128.65,8.38]
[1725827486624,3.1085,128.69,128.66,8.38]
[1725827488031,3.1085,128.69,128.65,3.1093]
[1725827488225,3.1085,128.69,128.65,11.4893]
[1725827488723,11.4886,128.68,128.64,4.4988]
[1725827489314,11.4886,128.68,128.64,1.3893]
[1725827492034,3.1089,128.67,128.64,1.3893]
[1725827496050,8.38,128.67,128.58,1.2805]
[1725827496352,8.38,128.66,128.6,8.38]
[1725827496655,3.1097,128.64,128.61,8.38]
[1725827510251,3.1097,128.64,128.6,11.4905]
[1725827521561,3.1098,128.63,128.59,7.04173001]
[1725827523565,3.1103,128.61,128.57,3.1111]
[1725827523767,3.1103,128.61,128.57,11.4911]
[1725827524166,155.89040011,128.66,128.6,8.38]
[1725827524362,155.89040011,128.66,128.61,12.34540427]
[1725827524563,155.89040011,128.66,128.61,8.38]
[1725827525068,155.89040011,128.66,128.61,12.31538066]
[1725827525570,3.1094,128.65,128.61,15.42548066]
[1725827528574,1.3551,128.68,128.63,8.38]
[1725827529673,3.1091,128.66,128.63,8.38]
[1725827530068,3.1091,128.66,128.62,12.8861]
[1725827530466,3.1094,128.65,128.62,8.38]
[1725827530670,8.38,128.65,128.59,5.36632402]
[1725827530866,8.38,128.64,128.59,1.3807]
[1725827531070,3.1099,128.63,128.59,8.45252702]
[1725827531267,3.1099,128.63,128.59,12.8714]
[1725827532673,3.1099,128.63,128.59,16.77294883]
[1725827533978,3.1099,128.63,128.59,4.4914]
[1725827534178,3.1099,128.63,128.59,12.8714]
[1725827535477,3.1099,128.63,128.59,16.84985699]
[1725827548691,3.1096,128.64,128.6,3.1105]
[1725827548991,174.4288669,128.68,128.62,8.38]
[1725827549388,3.1094,128.65,128.62,8.38]
[1725827553293,8.38,128.67,128.61,3.1101]
[1725827553294,3.1096,128.64,128.61,3.1101]
[1725827555786,8.38,128.65,128.59,9.7607]
[1725827556395,8.38,128.65,128.59,12.8713]
[1725827557493,3.11,128.63,128.59,12.8713]
[1725827559893,8.38,128.63,128.58,2.6338]
[1725827560089,8.38,128.63,128.57,8.38]
[1725827560982,3.1104,128.61,128.57,11.491]
[1725827565905,3.1104,128.61,128.57,12.8486]
[1725827568303,3.1104,128.61,128.57,9.7376]
[1725827574904,3.1104,128.61,128.57,12.8488]
[1725827576212,3.1101,128.62,128.58,8.38]
[1725827576408,3.1101,128.62,128.58,9.6652]
[1725827577008,3.1101,128.62,128.58,12.7761]
[1725827585310,3.1103,128.61,128.58,12.7761]
[1725827586916,3.1103,128.61,128.58,4.3961]
[1725827589418,3.1103,128.61,128.58,1.2852]
[1725827597119,8.38,128.65,128.59,3.9628218]
[1725827597521,3.11,128.63,128.59,3.9628218]
[1725827601526,8.38,128.63,128.58,1.2852]
[1725827602122,3.1103,128.61,128.58,1.2852]
[1725827602530,3.1103,128.61,128.58,4.3962]
[1725827603132,3.1103,128.61,128.57,5.858]
[1725827603326,24.7075,128.67,128.56,0.2]
[1725827603327,8.38,128.6,128.56,0.2]
[1725827604430,3.1109,128.59,128.56,0.2]
[1725827605128,3.1111,128.58,128.56,0.2]
[1725827613343,3.1113,128.57,128.56,0.2]
[1725827616946,3.1117,128.56,128.52,3.96285835]
[1725827617253,11.4917,128.56,128.52,3.1124]
[1725827617450,8.38,128.56,128.52,6.97725645]
[1725827617747,8.38,128.56,128.52,3.1124]
[1725827618144,8.38,128.56,128.52,7.05217122]
[1725827618339,8.38,128.56,128.5,8.38]
[1725827618548,8.38,128.56,128.49,8.58]
[1725827618852,8.38,128.56,128.49,12.45090498]
[1725827619351,3.1122,128.54,128.5,3.1128]
[1725827620245,3.1118,128.55,128.51,11.4927]
[1725827623245,3.1118,128.55,128.51,3.1127]
[1725827626954,3.1118,128.55,128.51,11.4927]
[1725827630861,3.1118,128.55,128.5,12.8512]
[1725827631563,3.1118,128.55,128.5,4.4712]
[1725827631772,3.1118,128.55,128.5,12.8512]
[1725827632552,3.1118,128.55,128.51,3.1126]
[1725827632758,3.1116,128.56,128.51,8.38]
[1725827633557,3.1116,128.56,128.52,3.1124]
[1725827634349,3.1113,128.57,128.52,8.38]
[1725827634561,2.6407,128.6,128.55,8.38]
[1725827635162,3.1109,128.59,128.55,8.38]
[1725827635962,3.1109,128.59,128.55,11.4916]
[1725827636663,3.1109,128.59,128.56,3.1115]
[1725827643762,3.1106,128.6,128.57,3.1112]
[1725827643963,3.1106,128.6,128.57,11.4912]
[1725827649468,189.0,128.77,128.59,8.38]
[1725827649768,8.38,128.67,128.61,8.38]
[1725827649971,3.1095,128.65,128.61,11.4901]
[1725827651873,3.1096,128.64,128.61,8.38]
[1725827657166,3.1098,128.63,128.6,8.38]
[1725827660781,3.1095,128.65,128.61,8.38]
[1725827662174,3.1096,128.64,128.61,8.38]
[1725827664283,3.1096,128.64,128.6,3.1104]
[1725827664284,23.34,128.65,128.59,8.38]
[1725827664779,3.11,128.63,128.59,8.38]
[1725827670090,3.11,128.63,128.6,8.38]
[1725827670290,3.1097,128.64,128.61,8.38]
[1725827671889,3.1097,128.64,128.62,8.38]
[1725827674183,1.3757,128.68,128.63,8.38]
[1725827674787,3.1092,128.66,128.63,11.4898]
[1725827674988,150.49202849,128.69,128.65,8.38]
[1725827675489,3.1088,128.68,128.65,8.38]
[1725827677192,3.1088,128.67,128.65,8.38]
[1725827679200,153.60062849,128.69,128.65,11.4893]
[1725827679389,150.49202849,128.69,128.66,8.38]
[1725827681296,150.49202849,128.69,128.66,11.4889]
[1725827681993,153.60052849,128.69,128.66,8.38]
[1725827682382,3.1088,128.68,128.64,3.1095]
[1725827682583,3.1088,128.68,128.64,11.4895]
[1725827685083,3.1088,128.67,128.62,1.3491]
[1725827685292,31.72,128.68,128.62,1.3491]
[1725827685491,31.72,128.68,128.62,9.7291]
[1725827685688,3.1095,128.65,128.62,1.3491]
[1725827685900,8.38,128.67,128.61,9.7738]
[1725827686295,3.1095,128.65,128.61,9.7738]
[1725827686897,3.1095,128.65,128.61,12.884]
[1725827687096,3.1095,128.65,128.62,8.38]
[1725827689398,3.1095,128.65,128.63,8.38]
[1725827690796,3.1095,128.65,128.62,11.49]
[1725827691003,3.1096,128.64,128.61,14.1906]
[1725827691185,3.1096,128.64,128.61,11.0804]
[1725827692198,3.1096,128.64,128.61,2.7004]
[1725827692395,8.38,128.65,128.56,1.3532]
[1725827692600,8.38,128.64,128.57,3.86711764]
[1725827692796,8.38,128.64,128.58,8.38]
[1725827693794,3.1102,128.62,128.58,8.38]
[1725827694392,3.1103,128.61,128.58,8.38]
[1725827702101,3.1103,128.61,128.59,8.38]
[1725827705012,3.1103,128.61,128.57,6.96629838]
[1725827705309,8.38,128.61,128.56,4.0265]
[1725827705512,8.38,128.61,128.56,8.38]
[1725827705701,8.38,128.6,128.51,3.9983]
[1725827705907,8.38,128.6,128.54,8.38]
[1725827707100,3.1113,128.57,128.54,8.38]
[1725827708307,3.1115,128.56,128.51,3.9983]
[1725827708517,8.38,128.58,128.53,8.38]
[1725827708914,3.1117,128.56,128.53,8.38]
[1725827710808,3.1118,128.55,128.51,8.33922347]
[1725827711129,8.38,128.57,128.51,9.7832]
[1725827712412,8.38,128.57,128.51,1.4032]
[1725827713017,3.1121,128.54,128.51,1.4032]
[1725827717423,8.38,128.56,128.51,1.4032]
[1725827717623,8.38,128.56,128.5,8.38]
[1725827717836,1.3068,128.57,128.49,11.6931]
[1725827717837,8.38,128.54,128.49,11.6931]
[1725827718013,3.1124,128.53,128.49,11.6931]
[1725827719122,8.38,128.53,128.49,0.2]
[1725827719325,8.38,128.52,128.49,0.2]
[1725827719829,3.1127,128.51,128.49,0.2]
[1725827720525,3.1129,128.5,128.49,0.2]
[1725827721231,27.3247,128.57,128.49,11.6931]
[1725827721422,8.38,128.56,128.5,8.38]
[1725827721633,3.9346049,128.55,128.5,8.38]
[1725827722023,3.1122,128.54,128.5,11.4929]
[1725827725333,31.72,128.56,128.49,3.313]
[1725827725645,8.38,128.56,128.51,8.38]
[1725827726147,3.112,128.54,128.51,8.38]
[1725827726436,8.38,128.55,128.49,8.58]
[1725827726822,3.1124,128.53,128.49,11.6931]
[1725827727136,31.72,128.55,128.49,8.58]
[1725827727529,3.1124,128.53,128.49,11.6932]
[1725827728539,3.1125,128.52,128.49,0.2]
[1725827728731,8.38,128.53,128.49,0.2]
[1725827729131,3.1129,128.51,128.49,0.2]
[1725827731635,3.1127,128.51,128.49,0.2]
[1725827736954,3.1126,128.52,128.49,0.2]
[1725827737448,31.72,128.54,128.49,0.2]
[1725827737950,3.1127,128.51,128.49,0.2]
[1725827739748,3.1121,128.54,128.5,8.38]
[1725827739950,3.1121,128.54,128.49,8.58]
[1725827740150,8.38,128.53,128.49,3.3131]
[1725827740452,11.4924,128.53,128.49,3.3131]
[1725827743951,8.38,128.53,128.49,0.2]
[1725827745744,23.34,128.56,128.49,0.2]
[1725827745745,8.38,128.52,128.49,0.2]
[1725827746049,3.1128,128.51,128.49,0.2]
[1725827760753,3.1125,128.52,128.49,0.2]
[1725827762162,3.1128,128.51,128.49,0.2]
[1725827769173,3.1129,128.5,128.49,0.2]
[1725827772879,11.4929,128.5,128.49,0.2]
[1725827778479,3.1128,128.51,128.49,0.2]
[1725827780481,3.1129,128.5,128.49,0.2]
[1725827786395,3.1128,128.51,128.49,0.2]
[1725827793186,3.1129,128.5,128.49,0.2]
[1725827803907,3.1128,128.51,128.49,0.2]
[1725827810614,3.1126,128.52,128.49,0.2]
[1725827811008,8.38,128.53,128.49,0.2]
[1725827811322,3.1128,128.51,128.49,0.2]
[1725827811626,8.38,128.54,128.49,0.2]
[1725827812121,3.1127,128.52,128.49,0.2]
[1725827814014,3.1128,128.51,128.49,0.2]
[1725827820217,3.1129,128.5,128.49,0.2]
[1725827823317,3.1128,128.51,128.49,0.2]
[1725827826220,8.38,128.51,128.49,0.2]
[1725827827309,3.1129,128.5,128.49,0.2]
[1725827839131,3.1129,128.51,128.49,0.2]
[1725827839334,8.38,128.53,128.49,0.2]
[1725827840031,3.1129,128.5,128.49,0.2]
[1725827855441,7.88505033,128.57,128.49,8.58]
[1725827855629,16.26505033,128.57,128.51,8.38]
[1725827855833,16.26505033,128.57,128.52,8.38]
[1725827856149,3.1121,128.54,128.52,8.38]
[1725827856739,2.7065,128.57,128.53,8.38]
[1725827857047,151.47701472,128.6,128.56,8.38]
[1725827857348,3.1112,128.58,128.56,8.38]
[1725827862141,3.1113,128.57,128.54,11.4918]
[1725827866248,3.1111,128.58,128.54,11.4918]
[1725827867042,3.1111,128.58,128.56,8.38]
[1725827869458,3.1113,128.57,128.53,6.90840113]
[1725827869638,3.1113,128.57,128.55,8.38]
[1725827880245,3.1111,128.58,128.56,8.38]
[1725827881554,154.58781472,128.6,128.57,8.38]
[1725827881745,151.47701472,128.6,128.57,8.38]
[1725827883452,3.111,128.58,128.57,8.38]
[1725827886357,3.111,128.58,128.56,8.38]
[1725827890556,3.1109,128.59,128.57,8.38]
[1725827890960,3.1109,128.59,128.58,8.38]
[1725827891357,154.58761472,128.6,128.58,8.38]
[1725827891555,151.47701472,128.6,128.54,3.9702]
[1725827891754,151.47701472,128.6,128.55,8.38]
[1725827892263,3.1111,128.58,128.56,8.38]
[1725827894264,3.1109,128.59,128.56,11.4915]
[1725827895347,3.1109,128.59,128.56,8.38]
[1725827902068,3.1109,128.59,128.55,3.1117]
[1725827902269,3.1111,128.58,128.56,8.38]
[1725827911077,151.47701472,128.6,128.56,8.38]
[1725827911377,3.85210448,128.59,128.54,2.5666]
[1725827911573,3.85210448,128.59,128.54,1.2768]
[1725827912081,3.1116,128.56,128.53,11.4921]
[1725827912278,3.85210448,128.59,128.53,8.38]
[1725827912783,3.1117,128.56,128.53,8.38]
[1725827917182,3.1113,128.57,128.55,8.38]
[1725827917384,3.1113,128.57,128.56,8.38]
[1725827932500,3.1115,128.56,128.53,3.1121]
[1725827932684,3.1115,128.56,128.55,8.38]
[1725827934692,3.1112,128.58,128.55,8.38]
[1725827934899,3.1112,128.58,128.57,8.38]
[1725827944896,3.1113,128.57,128.54,3.90561928]
[1725827945201,3.1113,128.57,128.54,8.38]
[1725827945409,3.1113,128.57,128.55,8.38]
[1725827967628,3.1117,128.56,128.55,8.38]
[1725827968436,3.1117,128.56,128.55,12.24641009]
[1725827968943,3.1114,128.57,128.55,12.24641009]
[1725827969335,151.47701472,128.6,128.55,12.24641009]
[1725827969535,151.47701472,128.6,128.59,8.38]
[1725827969536,154.58751472,128.6,128.59,8.38]
[1725827969837,151.47701472,128.6,128.58,8.38]
[1725827970030,151.47701472,128.6,128.57,8.38]
[1725827970439,151.47701472,128.6,128.53,8.38]
[1725827970440,8.38,128.58,128.53,8.38]
[1725827970645,12.36040266,128.58,128.53,8.38]
[1725827971434,3.112,128.55,128.53,8.38]
[1725827979544,8.38,128.55,128.49,0.2]
[1725827979849,8.38,128.55,128.5,4.2262688]
[1725827980049,3.1129,128.51,128.49,8.58]
[1725827981761,3.1125,128.52,128.49,8.58]
[1725827981952,3.1125,128.52,128.5,8.38]
[1725827982346,3.1127,128.51,128.5,8.38]
[1725827983358,3.1127,128.51,128.49,8.58]
[1725827985849,3.1126,128.52,128.5,8.38]
[1725827987052,3.1127,128.51,128.49,8.58]
[1725827988253,3.1127,128.51,128.49,0.2]
[1725827988566,3.1127,128.51,128.49,8.58]
[1725827993265,3.1127,128.51,128.49,0.2]
[1725827995263,3.1129,128.5,128.49,0.2]
[1725828001572,15.47857647,128.5,128.49,0.2]
[1725828001777,31.73,128.5,128.3,209.03201794]
[1725828001970,8.38,128.44,128.34,2.7365]
[1725828002162,1.3773,128.49,128.4,8.38]
[1725828002466,3.1146,128.44,128.37,4.4618]
[1725828002673,3.1146,128.44,128.4,8.38]
[1725828004165,3.1149,128.43,128.37,1.3458]
[1725828004366,3.1149,128.43,128.39,8.38]
[1725828004773,3.1149,128.43,128.41,8.38]
[1725828008382,3.1149,128.43,128.37,1.3458]
[1725828008686,3.1149,128.42,128.39,8.38]
[1725828008885,3.1149,128.42,128.4,8.38]
[1725828009075,1.3218,128.48,128.41,8.38]
[1725828009076,3.1145,128.44,128.41,8.38]
[1725828010875,8.38,128.45,128.4,8.38]
[1725828011389,3.1148,128.43,128.4,8.38]
[1725828012173,3.1149,128.42,128.4,8.38]
[1725828014182,3.1149,128.42,128.41,8.38]
[1725828017383,12.23418289,128.45,128.39,1.3652]
[1725828017384,8.38,128.44,128.39,1.3652]
[1725828017694,8.38,128.44,128.36,0.2]
[1725828017695,8.38,128.42,128.36,12.38003723]
[1725828018186,3.1156,128.4,128.36,8.58]
[1725828018389,3.1156,128.4,128.37,8.38]
[1725828021491,3.1157,128.39,128.37,8.38]
[1725828026310,143.30105205,128.44,128.38,8.38]
[1725828026488,143.30105205,128.44,128.4,8.38]
[1725828026795,3.1151,128.41,128.4,8.38]
[1725828030692,143.30105205,128.44,128.4,8.38]
[1725828030897,143.30105205,128.44,128.41,8.38]
[1725828031300,3.1148,128.43,128.41,8.38]
[1725828031596,3.98215955,128.42,128.41,8.38]
[1725828031797,143.30105205,128.44,128.41,8.38]
[1725828032103,3.86413212,128.49,128.42,8.38]
[1725828032391,3.86413212,128.49,128.37,1.3509]
[1725828032392,8.38,128.51,128.46,8.38]
[1725828032599,12.2834746,128.51,128.46,8.38]
[1725828032785,3.1136,128.48,128.46,8.38]
[1725828034612,3.1136,128.48,128.45,8.38]
[1725828034990,6.98574611,128.48,128.45,8.38]
[1725828035197,3.1136,128.48,128.45,8.38]
[1725828035698,7.07101508,128.48,128.45,8.38]
[1725828036201,3.1136,128.48,128.45,8.38]
[1725828036800,3.1137,128.47,128.45,8.38]
[1725828036999,8.38,128.46,128.37,1.3509]
[1725828037194,8.38,128.46,128.4,8.38]
[1725828037388,3.1146,128.44,128.41,8.38]
[1725828037603,8.38,128.49,128.43,8.38]
[1725828037891,8.38,128.49,128.44,8.38]
[1725828038092,8.38,128.49,128.43,8.38]
[1725828038093,3.1139,128.46,128.43,8.38]
[1725828047718,3.1138,128.47,128.45,8.38]
[1725828047902,12.22801058,128.49,128.44,8.38]
[1725828049298,3.1139,128.46,128.44,8.38]
[1725828051313,3.1137,128.47,128.44,8.38]
[1725828051532,8.38,128.52,128.46,8.38]
[1725828051824,8.38,128.52,128.47,8.38]
[1725828052009,3.1134,128.49,128.47,8.38]
[1725828052207,8.38,128.52,128.46,8.38]
[1725828053022,3.1135,128.48,128.46,8.38]
[1725828053623,8.38,128.51,128.45,8.38]
[1725828053946,8.38,128.51,128.46,8.38]
[1725828054124,3.1135,128.48,128.46,8.38]
[1725828058429,9.7522,128.54,128.47,8.38]
[1725828058644,13.65588294,128.54,128.48,8.38]
[1725828058824,3.113,128.5,128.48,8.38]
[1725828059233,13.65588294,128.54,128.48,8.38]
[1725828059234,1.3722,128.54,128.48,8.38]
[1725828059431,3.97198143,128.54,128.5,8.38]
[1725828059734,9.7094,128.55,128.5,8.38]
[1725828060231,13.58911841,128.55,128.5,8.38]
[1725828061153,8.38,128.53,128.48,1.3411]
[1725828061635,3.1129,128.51,128.48,1.3411]
[1725828062035,3.1129,128.51,128.48,9.7211]
[1725828062644,3.113,128.5,128.48,9.7211]
[1725828064639,3.1132,128.49,128.48,8.38]
[1725828064932,28.55911841,128.55,128.46,8.38]
[1725828064933,8.38,128.51,128.46,8.38]
[1725828065332,3.1136,128.48,128.46,8.38]
[1725828069029,3.1136,128.48,128.45,3.80001556]
[1725828069230,3.1136,128.48,128.45,12.18001556]
[1725828069440,3.1137,128.47,128.45,8.38]
[1725828069631,3.1137,128.47,128.44,6.49555025]
[1725828069835,3.1137,128.47,128.45,8.38]
[1725828070438,8.38,128.51,128.44,6.49555025]
[1725828070439,3.89061891,128.48,128.44,1.4022]
[1725828070636,8.38,128.5,128.44,9.7822]
[1725828071137,3.1141,128.46,128.44,9.7822]
[1725828071639,3.1141,128.46,128.45,8.38]
[1725828071943,3.1141,128.46,128.44,1.4022]
[1725828072138,3.1141,128.46,128.45,8.38]
[1725828072642,3.1138,128.47,128.45,8.38]
[1725828073040,3.1139,128.46,128.44,1.4022]
[1725828073237,3.1139,128.46,128.44,9.7822]
[1725828073945,3.1142,128.45,128.43,9.7412]
[1725828074236,3.1142,128.45,128.43,8.38]
[1725828075147,3.114,128.46,128.43,8.38]
[1725828076339,3.114,128.46,128.44,8.38]
[1725828076537,3.114,128.46,128.45,8.38]
[1725828076735,3.1137,128.47,128.45,8.38]
[1725828079140,3.1139,128.46,128.45,8.38]
[1725828080140,3.1139,128.46,128.44,8.38]
[1725828083630,3.1142,128.45,128.44,8.38]
[1725828083840,8.38,128.5,128.44,8.38]
[1725828084144,3.114,128.46,128.44,8.38]
[1725828084644,3.1142,128.45,128.42,3.1148]
[1725828084946,3.1142,128.45,128.42,8.38]
[1725828086446,3.1142,128.45,128.43,8.38]
[1725828086755,3.114,128.46,128.44,8.38]
[1725828086960,9.769,128.51,128.45,8.38]
[1725828087642,3.1138,128.47,128.45,8.38]
[1725828092250,3.1139,128.46,128.38,2.6701]
[1725828092460,3.1139,128.46,128.42,8.38]
[1725828092649,12.34044229,128.47,128.42,8.38]
[1725828092850,3.1143,128.45,128.42,8.38]
[1725828095246,3.1143,128.45,128.44,8.38]
[1725828097063,3.114,128.46,128.44,8.38]
[1725828101661,3.1138,128.47,128.45,8.38]
[1725828106853,8.38,128.47,128.36,0.2]
[1725828107065,5.24839824,128.47,128.4,8.38]
[1725828107262,8.38,128.46,128.4,8.38]
[1725828107461,3.1146,128.44,128.4,12.24271608]
[1725828108370,3.1146,128.44,128.41,8.38]
[1725828108571,3.1146,128.44,128.4,3.86271608]
[1725828108878,3.1146,128.44,128.42,8.38]
[1725828112972,3.1146,128.43,128.41,8.38]
[1725828120472,3.1149,128.42,128.41,8.38]
[1725828120778,3.1149,128.42,128.4,8.38]
[1725828128887,3.1149,128.42,128.38,3.1158]
[1725828129086,3.1149,128.42,128.39,12.23037775]
[1725828130289,3.1151,128.41,128.39,8.38]
[1725828130488,3.1151,128.41,128.39,12.29852948]
[1725828130788,3.115,128.42,128.39,12.29852948]
[1725828133084,3.1147,128.43,128.41,8.38]
[1725828133282,137.89079256,128.48,128.42,8.38]
[1725828133490,3.85855596,128.47,128.45,8.38]
[1725828133688,3.1139,128.46,128.45,8.38]
[1725828135482,3.1138,128.47,128.45,8.38]
[1725828135684,3.1138,128.47,128.46,8.38]
[1725828137595,3.1138,128.47,128.45,8.38]
[1725828138388,3.1139,128.46,128.45,8.38]
[1725828139803,146.27079256,128.48,128.42,8.38]
[1725828140296,3.1144,128.45,128.42,8.38]
[1725828140689,146.27079256,128.48,128.42,8.38]
[1725828141491,8.38,128.43,128.36,0.2]
[1725828141693,8.38,128.43,128.37,12.23103566]
[1725828141898,3.1153,128.41,128.37,12.23103566]
[1725828143394,3.1153,128.41,128.37,15.34713566]
[1725828145499,3.1153,128.41,128.39,8.38]
[1725828146393,3.115,128.42,128.39,8.38]
[1725828148700,3.115,128.42,128.37,6.96713566]
[1725828149005,3.115,128.42,128.38,8.38]
[1725828151609,8.38,128.44,128.37,6.96713566]
[1725828151903,8.38,128.44,128.39,8.38]
[1725828153107,3.1151,128.41,128.39,8.38]
[1725828153605,3.1149,128.42,128.39,8.38]
[1725828153810,3.90009344,128.45,128.41,8.38]
[1725828154009,12.4289,128.47,128.41,8.38]
[1725828154310,3.1146,128.44,128.41,8.38]
[1725828154604,6.95661382,128.44,128.41,8.38]
[1725828154806,3.1146,128.44,128.41,8.38]
[1725828155309,6.97180581,128.44,128.41,8.38]
[1725828161105,3.1146,128.44,128.41,8.38]
[1725828163516,3.1153,128.41,128.37,9.60873566]
[1725828163720,12.21393051,128.45,128.39,8.38]
[1725828163922,35.56393051,128.45,128.37,6.49283566]
[1725828164112,35.56393051,128.45,128.38,8.38]
[1725828165407,3.1151,128.42,128.38,8.38]
[1725828166918,3.1151,128.42,128.37,9.60873566]
[1725828167219,3.1151,128.42,128.38,8.38]
[1725828171520,3.1151,128.41,128.38,8.38]
[1725828172521,3.115,128.42,128.38,11.4958]
[1725828176332,3.115,128.42,128.39,3.1156]
[1725828176629,3.115,128.42,128.38,8.38]
[1725828178332,3.115,128.42,128.38,11.4957]
[1725828181621,3.115,128.42,128.4,8.38]
[1725828182429,3.1151,128.41,128.4,8.38]
[1725828185731,3.1151,128.41,128.38,8.38]
[1725828186230,3.1151,128.41,128.37,9.60883566]
[1725828186532,3.1151,128.41,128.38,8.38]
[1725828191725,3.1155,128.4,128.37,8.38]
[1725828196725,3.1153,128.41,128.38,8.38]
[1725828201034,3.1153,128.41,128.38,11.4958]
[1725828206233,3.1153,128.41,128.38,8.38]
[1725828208732,8.38,128.42,128.36,4.6401]
[1725828208958,8.38,128.42,128.36,9.9038]
[1725828209341,3.1158,128.39,128.36,9.9038]
[1725828211741,3.1158,128.39,128.36,1.5238]
[1725828212140,3.1158,128.39,128.37,8.38]
[1725828214133,3.1159,128.38,128.36,0.2]
[1725828214336,3.1159,128.38,128.36,8.58]
[1725828215646,3.1155,128.4,128.37,8.38]
[1725828217750,3.1156,128.39,128.37,8.38]
[1725828220847,3.1156,128.39,128.36,3.3163]
[1725828220848,3.1156,128.39,128.36,8.58]
[1725828222539,3.1156,128.39,128.36,0.2]
[1725828223049,3.1156,128.39,128.36,3.3163]
[1725828224552,3.116,128.38,128.36,0.2]
[1725828224757,2.7433,128.43,128.36,0.2]
[1725828224948,2.7433,128.43,128.36,8.58]
[1725828225151,3.1155,128.4,128.36,11.6962]
[1725828226246,3.1156,128.39,128.36,3.3162]
[1725828226473,3.1156,128.39,128.36,11.6962]
[1725828226952,3.1156,128.39,128.36,3.3162]
[1725828227149,3.1156,128.39,128.36,11.6962]